bitfinex/quotes_SOLUSD_20251216
["timestamp","ask_amount","ask_price","bid_price","bid_amount"]
[1765884604372,4.35884106,128.64,128.63,8.80994492]
[1765884604754,4.45884106,128.65,128.63,9.49994492]
[1765884605071,0.1,128.65,128.63,17.27408647]
[1765884605273,0.1,128.65,128.64,0.69]
[1765884607153,0.1,128.65,128.64,17.27357676]
[1765884608455,0.1,128.65,128.64,83.53241782]
[1765884609562,0.1,128.65,128.64,79.17357676]
[1765884609768,0.1,128.65,128.64,83.53241782]
[1765884610481,0.1,128.65,128.64,79.17357676]
[1765884610779,0.1,128.65,128.64,87.69357676]
[1765884610983,0.1,128.65,128.64,25.79357676]
[1765884612862,0.1,128.65,128.64,30.15241782]
[1765884614160,0.1,128.65,128.64,47.55835008]
[1765884614789,0.1,128.65,128.64,43.19950902]
[1765884614999,0.1,128.65,128.64,47.55835008]
[1765884615191,1e-08,128.66,128.65,13.85878598]
[1765884616012,1e-08,128.66,128.65,75.75878598]
[1765884616167,1e-08,128.68,128.67,22.54703612]
[1765884616370,1e-08,128.68,128.67,35.42587718]
[1765884616989,1e-08,128.68,128.67,43.19769656]
[1765884617191,1e-08,128.68,128.67,25.7917643]
[1765884617394,1e-08,128.68,128.67,30.15060536]
[1765884617595,1e-08,128.68,128.67,21.63060536]
[1765884617778,1e-08,128.68,128.67,17.32994492]
[1765884617973,1e-08,128.68,128.67,25.1017643]
[1765884618173,1e-08,128.68,128.67,25.7917643]
[1765884618393,1e-08,128.68,128.67,30.15060536]
[1765884619806,1e-08,128.68,128.67,25.1017643]
[1765884620301,1e-08,128.68,128.67,16.5817643]
[1765884620793,1e-08,128.68,128.67,17.2717643]
[1765884621004,1e-08,128.68,128.67,16.5817643]
[1765884622489,1e-08,128.68,128.67,8.80994492]
[1765884622707,5.07884107,128.68,128.67,8.80994492]
[1765884622877,0.72000001,128.68,128.67,8.80994492]
[1765884623194,1e-08,128.68,128.67,8.80994492]
[1765884623394,1e-08,128.68,128.67,16.5817643]
[1765884624205,5.07884107,128.68,128.67,8.80994492]
[1765884624388,12.85005648,128.68,128.67,8.80994492]
[1765884626025,8.49121542,128.68,128.67,8.80994492]
[1765884626227,12.85005648,128.68,128.67,8.80994492]
[1765884626882,1e-08,128.68,128.67,9.49994492]
[1765884627304,1e-08,128.68,128.67,17.2717643]
[1765884627580,1e-08,128.68,128.67,20.94060536]
[1765884629205,1e-08,128.68,128.67,33.98769656]
[1765884629718,0.1,128.7,128.69,9.49994492]
[1765884629901,0.1,128.7,128.69,22.37878598]
[1765884630506,0.1,128.7,128.69,30.14939752]
[1765884633104,0.1,128.7,128.69,25.79055646]
[1765884633322,1e-08,128.7,128.69,30.14939752]
[1765884633523,1e-08,128.7,128.69,17.27055646]
[1765884633810,1e-08,128.7,128.69,30.14939752]
[1765884635190,1e-08,128.7,128.69,92.04939752]
[1765884636409,1e-08,128.7,128.69,83.52939752]
[1765884636611,1e-08,128.7,128.69,92.04939752]
[1765884637037,1e-08,128.7,128.69,30.14939752]
[1765884637722,1e-08,128.7,128.69,30.12939752]
[1765884638016,1e-08,128.7,128.69,29.45939752]
[1765884638724,1e-08,128.7,128.69,30.12939752]
[1765884640995,1e-08,128.7,128.69,92.02939752]
[1765884642024,1e-08,128.7,128.69,95.14163249]
[1765884642793,0.1,128.76,128.72,0.67]
[1765884642999,0.76,128.76,128.75,8.80994492]
[1765884643223,0.76,128.76,128.75,17.32994492]
[1765884644099,0.76,128.76,128.75,25.09693521]
[1765884644308,0.76,128.76,128.75,17.32994492]
[1765884644723,0.1,128.76,128.75,17.32994492]
[1765884645030,0.1,128.76,128.75,25.09693521]
[1765884645810,0.1,128.76,128.75,30.12577627]
[1765884647030,0.1,128.76,128.75,25.76693521]
[1765884647331,0.1,128.76,128.75,29.45577627]
[1765884647522,0.1,128.76,128.75,30.12577627]
[1765884650330,0.1,128.76,128.75,30.11503107]
[1765884650834,5.10809586,128.76,128.75,8.80994492]
[1765884651427,3.54445316,128.76,128.75,8.80994492]
[1765884653639,11.31084023,128.76,128.75,8.80994492]
[1765884654032,0.66,128.75,128.71,17.32994492]
[1765884654346,0.66,128.73,128.71,17.32994492]
[1765884655229,0.66,128.73,128.71,25.09930056]
[1765884655751,0.66,128.73,128.71,17.32994492]
[1765884656537,0.66,128.73,128.71,8.80994492]
[1765884656748,0.66,128.71,128.69,8.80994492]
[1765884657050,0.66,128.71,128.69,16.58037222]
[1765884657472,0.66,128.71,128.69,8.80994492]
[1765884658044,0.66,128.71,128.69,16.58013586]
[1765884658630,10.55196031,128.75,128.71,8.80994492]
[1765884658827,0.66,128.74,128.71,11.59439808]
[1765884659332,0.66,128.74,128.71,8.80994492]
[1765884660250,0.66,128.73,128.71,8.80994492]
[1765884661359,0.66,128.7,128.68,8.80994492]
[1765884661553,0.66,128.7,128.69,8.52]
[1765884661855,0.66,128.7,128.67,10.55579752]
[1765884661856,0.66,128.69,128.67,8.80994492]
[1765884662060,0.66,128.68,128.67,16.58174947]
[1765884662262,0.66,128.68,128.67,8.80994492]
[1765884662462,0.66,128.67,128.64,8.80994492]
[1765884662628,0.66,128.66,128.63,9.19]
[1765884663146,0.66,128.71,128.69,8.80994492]
[1765884663544,0.66,128.71,128.68,16.58105094]
[1765884664945,0.68,128.7,128.68,16.58105094]
[1765884666846,2.78445316,128.73,128.69,0.7]
[1765884667039,0.68,128.73,128.7,8.80994492]
[1765884667443,0.68,128.72,128.7,8.80994492]
[1765884668355,0.68,128.71,128.7,8.80994492]
[1765884669483,0.68,128.72,128.7,16.57995269]
[1765884670177,2.78445316,128.74,128.71,0.7]
[1765884670371,0.68,128.74,128.71,0.7]
[1765884671781,10.65091953,128.76,128.72,9.50994492]
[1765884671991,0.78,128.76,128.74,8.80994492]
[1765884673264,0.78,128.76,128.74,16.57739056]
[1765884673466,0.1,128.76,128.74,16.57739056]
[1765884673668,0.1,128.76,128.74,17.27739056]
[1765884674057,0.1,128.76,128.75,9.50994492]
[1765884674287,0.1,128.76,128.75,18.02994492]
[1765884674875,0.1,128.76,128.75,20.81439808]
[1765884675064,0.1,128.76,128.75,28.58138837]
[1765884675985,0.1,128.76,128.75,41.62847957]
[1765884677496,0.1,128.81,128.79,0.7]
[1765884677664,0.1,128.81,128.8,20.81439808]
[1765884678077,0.1,128.86,128.82,8.80994492]
[1765884678304,0.1,128.86,128.85,12.29439808]
[1765884678596,0.1,128.86,128.85,17.32994492]
[1765884679419,0.1,128.86,128.85,25.09090727]
[1765884681723,0.68,128.85,128.82,8.52]
[1765884682025,7.54348856,128.86,128.81,15.90670258]
[1765884682026,0.1,128.86,128.81,15.90670258]
[1765884682190,0.78,128.86,128.83,8.80994492]
[1765884683501,0.78,128.86,128.83,16.57185908]
[1765884683934,0.78,128.86,128.83,24.01534764]
[1765884684297,0.78,128.86,128.83,24.71534764]
[1765884684491,0.1,128.86,128.84,0.7]
[1765884684699,0.1,128.86,128.85,16.25343348]
[1765884685038,0.1,128.86,128.84,17.32994492]
[1765884685190,0.1,128.86,128.85,8.80994492]
[1765884685598,0.1,128.86,128.85,16.57090727]
[1765884685796,0.1,128.86,128.85,24.01439583]
[1765884685997,0.1,128.86,128.85,24.71439583]
[1765884688035,0.1,128.89,128.87,8.80994492]
[1765884688220,0.1,128.89,128.85,60.51974468]
[1765884688221,0.1,128.89,128.88,18.00994492]
[1765884688403,0.1,128.89,128.88,25.45343348]
[1765884689224,0.1,128.89,128.88,18.00994492]
[1765884689429,0.1,128.89,128.88,25.45343348]
[1765884689630,0.1,128.89,128.88,33.21258928]
[1765884691234,0.1,128.89,128.88,32.51258928]
[1765884691609,0.1,128.89,128.88,24.01258928]
[1765884691798,8.22348856,128.89,128.88,8.80994492]
[1765884691999,7.54348856,128.89,128.83,23.70551289]
[1765884692203,0.68,128.87,128.84,8.80994492]
[1765884692850,0.1,128.89,128.84,24.01493416]
[1765884692998,0.68,128.88,128.86,8.80994492]
[1765884694007,7.54348856,128.89,128.86,8.80994492]
[1765884694008,0.77,128.89,128.88,8.80994492]
[1765884694544,0.1,128.89,128.87,16.25343348]
[1765884694704,0.77,128.89,128.87,16.25343348]
[1765884694910,0.77,128.89,128.87,8.80994492]
[1765884695347,0.77,128.89,128.87,16.25343348]
[1765884695706,0.77,128.89,128.87,24.75343348]
[1765884695907,0.77,128.89,128.87,17.30994492]
[1765884696332,0.67,128.88,128.85,17.30994492]
[1765884696846,0.67,128.87,128.84,8.80994492]
[1765884697040,0.67,128.87,128.84,16.57141976]
[1765884697636,0.67,128.87,128.85,7.76066934]
[1765884697842,0.67,128.87,128.86,8.80994492]
[1765884699528,0.67,128.87,128.85,8.5]
[1765884700334,7.75977834,128.87,128.85,8.5]
[1765884700636,0.67,128.86,128.84,70.70994492]
[1765884701318,0.67,128.84,128.8,8.80994492]
[1765884701513,0.67,128.83,128.8,17.30994492]
[1765884701713,0.67,128.83,128.8,8.5]
[1765884702031,0.67,128.82,128.8,8.5]
[1765884702335,0.67,128.82,128.8,7.76396517]
[1765884703065,19.40277005,128.85,128.8,7.76396517]
[1765884703066,0.67,128.85,128.81,8.15348856]
[1765884703360,0.67,128.85,128.82,16.25343348]
[1765884703555,15.20338693,128.87,128.82,16.96343348]
[1765884703753,0.67,128.86,128.84,8.80994492]
[1765884704542,7.75919922,128.88,128.84,16.57136832]
[1765884704710,0.67,128.87,128.84,32.51485688]
[1765884704912,0.67,128.86,128.84,17.30994492]
[1765884705216,0.67,128.86,128.84,8.80994492]
[1765884706616,0.67,128.87,128.84,16.57139001]
[1765884706937,0.67,128.87,128.84,25.07139001]
[1765884707144,7.44348856,128.87,128.84,17.30994492]
[1765884707319,0.67,128.85,128.83,8.80994492]
[1765884708734,0.67,128.85,128.83,16.57195236]
[1765884708916,0.67,128.87,128.83,17.28195236]
[1765884709117,0.67,128.87,128.83,24.72544092]
[1765884709838,7.75976503,128.87,128.83,24.01544092]
[1765884710047,0.67,128.85,128.83,8.80994492]
[1765884710218,7.76238036,128.83,128.79,16.57444587]
[1765884710540,0.67,128.82,128.79,7.76450095]
[1765884710920,0.67,128.82,128.78,15.94348856]
[1765884711135,7.44348856,128.82,128.79,8.80994492]
[1765884711340,0.67,128.81,128.79,8.80994492]
[1765884712213,7.44348856,128.81,128.79,8.80994492]
[1765884712439,0.67,128.79,128.73,8.15348856]
[1765884712634,0.67,128.75,128.71,7.44348856]
[1765884712848,7.44348856,128.75,128.72,8.80994492]
[1765884713145,0.67,128.73,128.7,7.76985346]
[1765884713322,0.67,128.73,128.71,8.80994492]
[1765884713719,0.67,128.75,128.71,12.12395389]
[1765884713923,0.67,128.75,128.72,19.89275438]
[1765884714220,38.81686204,128.81,128.72,19.89275438]
[1765884714221,8.80994492,128.82,128.75,0.71]
[1765884714547,0.67,128.81,128.79,8.80994492]
[1765884714718,0.67,128.81,128.77,20.93389881]
[1765884715441,0.67,128.81,128.77,16.5754332]
[1765884715649,0.67,128.81,128.76,8.5]
[1765884715650,0.67,128.79,128.76,8.5]
[1765884715822,0.67,128.79,128.77,8.80994492]
[1765884721156,12.11060135,128.79,128.77,8.80994492]
[1765884721354,0.67,128.77,128.75,8.80994492]
[1765884721544,0.67,128.77,128.74,8.80994492]
[1765884721741,0.67,128.77,128.74,16.57746252]
[1765884722062,0.67,128.79,128.76,8.80994492]
[1765884722851,0.67,128.79,128.71,13.0470912]
[1765884722852,0.67,128.76,128.72,20.92054627]
[1765884723057,0.67,128.8,128.76,9.51994492]
[1765884723355,0.67,128.8,128.76,28.6865744]
[1765884724359,0.67,128.8,128.77,12.11060135]
[1765884724759,20.8106765,128.81,128.77,12.83060135]
[1765884725059,21.5106765,128.81,128.77,12.83060135]
[1765884726058,16.16922367,128.82,128.79,12.11060135]
[1765884726059,4.75862232,128.82,128.79,12.11060135]
[1765884726360,0.7,128.81,128.76,7.76624703]
[1765884726664,4.05862232,128.82,128.79,8.80994492]
[1765884726860,0.7,128.81,128.77,17.00573246]
[1765884727053,0.7,128.81,128.79,8.80994492]
[1765884727360,0.7,128.79,128.76,17.32994492]
[1765884727838,0.7,128.79,128.76,8.80994492]
[1765884728853,0.7,128.78,128.74,70.42]
[1765884729036,0.7,128.76,128.72,7.76865671]
[1765884729238,0.7,128.75,128.73,8.80994492]
[1765884729652,12.11060135,128.77,128.74,8.80994492]
[1765884729935,0.7,128.76,128.74,8.80994492]
[1765884730552,0.7,128.75,128.73,8.80994492]
[1765884730881,0.7,128.76,128.73,16.57802134]
[1765884733473,13.0470912,128.79,128.74,0.72]
[1765884733474,12.81060135,128.78,128.74,0.72]
[1765884733772,0.7,128.78,128.75,8.80994492]
[1765884735559,32.92246725,128.79,128.75,16.57683879]
[1765884735742,32.92246725,128.79,128.75,17.29683879]
[1765884735743,0.7,128.78,128.75,17.29683879]
[1765884737075,0.7,128.78,128.75,16.57683879]
[1765884737242,0.7,128.79,128.76,9.52994492]
[1765884737444,0.7,128.79,128.76,71.42994492]
[1765884738341,0.7,128.79,128.76,70.70994492]
[1765884738568,0.7,128.79,128.76,78.47631981]
[1765884738882,0.7,128.79,128.76,79.19631981]
[1765884740286,8.46348582,128.81,128.78,8.80994492]
[1765884740875,0.7,128.8,128.78,8.80994492]
[1765884741477,25.85769255,128.79,128.78,8.80994492]
[1765884743566,33.62227054,128.79,128.78,8.80994492]
[1765884745082,13.0470912,128.79,128.76,8.80994492]
[1765884745254,0.7,128.78,128.76,8.80994492]
[1765884745456,13.0470912,128.79,128.76,8.80994492]
[1765884745780,0.7,128.78,128.76,8.80994492]
[1765884746847,8.46396151,128.81,128.78,0.72]
[1765884747048,8.46396151,128.81,128.77,20.63060135]
[1765884747277,8.46396151,128.81,128.77,21.35060135]
[1765884749290,8.46396151,128.81,128.77,20.63060135]
[1765884749498,8.46396151,128.81,128.78,0.72]
[1765884749793,8.46396151,128.81,128.77,20.63060135]
[1765884750097,32.43209276,128.82,128.78,8.80994492]
[1765884750264,7.76286909,128.82,128.79,0.72]
[1765884750466,8.46286909,128.82,128.79,0.72]
[1765884751068,8.46286909,128.82,128.78,9.52994492]
[1765884751590,4.0581265,128.84,128.81,12.11060135]
[1765884751780,0.7,128.86,128.82,9.52994492]
[1765884751976,0.7,128.86,128.82,21.64054627]
[1765884752293,0.7,128.86,128.82,9.52994492]
[1765884752513,0.7,128.86,128.82,21.64054627]
[1765884752797,4.75689197,128.87,128.83,0.72]
[1765884753178,4.05689197,128.87,128.83,0.72]
[1765884753495,0.7,128.86,128.82,29.40274888]
[1765884754181,8.4604854,128.86,128.82,29.40274888]
[1765884754575,8.4604854,128.86,128.82,91.30274888]
[1765884754991,0.68,128.85,128.82,79.19214753]
[1765884755283,8.4404854,128.86,128.82,91.30274888]
[1765884755690,8.4404854,128.86,128.82,91.28274888]
[1765884756975,0.68,128.85,128.82,70.70994492]
[1765884757173,0.68,128.82,128.79,8.80994492]
[1765884757375,0.68,128.82,128.79,17.27429299]
[1765884757707,0.68,128.8,128.77,5.04610649]
[1765884757871,4.34610649,128.81,128.77,5.04610649]
[1765884758071,0.68,128.81,128.77,12.1117547]
[1765884758313,0.68,128.81,128.78,9.50994492]
[1765884759212,20.60921705,128.82,128.78,9.50994492]
[1765884759374,0.68,128.81,128.78,9.50994492]
[1765884759574,0.68,128.81,128.78,17.27511695]
[1765884759770,8.5,128.82,128.79,0.7]
[1765884759991,12.78866772,128.85,128.82,8.80994492]
[1765884760183,8.5,128.85,128.82,9.50994492]
[1765884760385,9.18,128.86,128.82,21.61861264]
[1765884760581,16.94053615,128.86,128.83,12.10866772]
[1765884761284,16.94053615,128.86,128.83,19.87067245]
[1765884761285,9.18,128.86,128.83,19.87067245]
[1765884761693,9.18,128.86,128.82,29.38117101]
[1765884761902,9.18,128.86,128.83,7.76195962]
[1765884762200,16.94048575,128.86,128.82,29.38131103]
[1765884762504,0.68,128.85,128.82,28.68131103]
[1765884762800,0.68,128.85,128.82,17.27264331]
[1765884763102,0.68,128.85,128.82,29.38131103]
[1765884763290,0.68,128.85,128.82,17.27264331]
[1765884763692,0.68,128.85,128.82,29.38131103]
[1765884764103,32.425479,128.87,128.83,0.7]
[1765884764311,0.68,128.86,128.83,0.7]
[1765884764606,0.68,128.86,128.82,29.38131103]
[1765884764781,0.68,128.85,128.82,16.57264331]
[1765884765107,0.68,128.85,128.82,17.27264331]
[1765884765810,0.68,128.85,128.82,79.17264331]
[1765884770722,0.68,128.85,128.82,91.28131103]
[1765884770899,0.68,128.87,128.83,12.80866772]
[1765884771104,0.68,128.86,128.84,8.80994492]
[1765884772917,0.68,128.85,128.83,8.80994492]
[1765884773418,0.68,128.84,128.82,8.80994492]
[1765884774600,0.68,128.83,128.81,8.80994492]
[1765884774918,0.68,128.83,128.8,9.50994492]
[1765884775293,0.68,128.83,128.8,17.27390521]
[1765884775798,0.68,128.83,128.8,24.72322926]
[1765884776614,0.68,128.83,128.8,17.27390521]
[1765884777688,0.68,128.83,128.8,79.17390521]
[1765884778720,0.68,128.83,128.8,71.40994492]
[1765884778912,0.68,128.83,128.8,79.17379707]
[1765884779921,0.68,128.83,128.79,2.78094494]
[1765884779922,0.68,128.81,128.78,8.80994492]
[1765884780133,2.78094494,128.8,128.78,8.80994492]
[1765884780328,8.5,128.81,128.75,9.50994492]
[1765884780329,0.68,128.78,128.75,9.50994492]
[1765884780511,0.68,128.78,128.75,0.7]
[1765884780711,0.68,128.77,128.74,7.76736658]
[1765884780906,0.68,128.77,128.75,8.80994492]
[1765884781825,19.04460116,128.81,128.78,0.7]
[1765884782031,8.5,128.81,128.78,0.7]
[1765884782210,0.68,128.81,128.78,0.7]
[1765884782394,0.68,128.81,128.78,3.48094494]
[1765884782795,8.4429392,128.82,128.78,3.48094494]
[1765884782996,8.44234317,128.83,128.8,8.80994492]
[1765884783219,8.44234317,128.83,128.8,9.50994492]
[1765884783728,8.48174928,128.84,128.81,0.68]
[1765884784099,8.48174928,128.84,128.8,19.35453436]
[1765884784300,8.48174928,128.84,128.8,20.03453436]
[1765884785238,0.72,128.83,128.8,20.03453436]
[1765884785629,0.72,128.83,128.8,17.25358942]
[1765884786012,8.48174928,128.84,128.8,17.25358942]
[1765884786742,0.72,128.84,128.8,20.03453436]
[1765884786921,16.26118807,128.85,128.82,9.48994492]
[1765884787534,16.98118807,128.85,128.82,9.48994492]
[1765884787910,16.98118807,128.85,128.82,8.80994492]
[1765884788316,3.5001733,128.86,128.84,8.80994492]
[1765884788727,0.72,128.86,128.84,8.80994492]
[1765884788950,0.72,128.86,128.83,8.80994492]
[1765884789437,8.5,128.87,128.83,19.35189037]
[1765884789622,0.72,128.87,128.84,0.68]
[1765884790141,21.62565761,128.89,128.84,2.7801733]
[1765884790340,21.62565761,128.89,128.86,0.68]
[1765884791043,0.82,128.89,128.86,3.4601733]
[1765884791242,0.1,128.89,128.86,3.4601733]
[1765884791454,0.1,128.89,128.87,8.80994492]
[1765884792019,0.1,128.89,128.87,9.48994492]
[1765884793148,0.1,128.89,128.87,8.80994492]
[1765884793330,0.1,128.89,128.87,9.48994492]
[1765884793528,0.1,128.89,128.88,0.68]
[1765884794618,0.1,128.89,128.87,20.02986754]
[1765884794849,0.1,128.89,128.87,9.48994492]
[1765884795143,0.72,128.88,128.85,16.57087054]
[1765884795444,0.1,128.89,128.86,0.68]
[1765884795645,0.1,128.89,128.88,0.68]
[1765884796716,0.1,128.89,128.87,71.38994492]
[1765884796921,0.1,128.89,128.87,70.70994492]
[1765884797121,0.82,128.89,128.87,70.70994492]
[1765884797323,0.1,128.89,128.87,70.70994492]
[1765884797540,0.1,128.89,128.88,0.68]
[1765884797942,0.1,128.89,128.87,81.92957621]
[1765884798341,0.1,128.89,128.88,3.4601733]
[1765884798855,0.1,128.89,128.88,74.17011822]
[1765884799246,0.1,128.89,128.88,81.92927402]
[1765884800136,0.1,128.89,128.88,20.02927402]
[1765884801038,0.1,128.89,128.88,17.24910072]
[1765884801352,0.1,128.89,128.88,20.02927402]
[1765884803036,0.1,128.89,128.88,28.52927402]
[1765884803659,0.1,128.89,128.88,17.30994492]
[1765884803840,0.1,128.89,128.88,25.06910072]
[1765884804439,0.1,128.89,128.88,17.30994492]
[1765884804646,0.1,128.89,128.88,25.06910072]
[1765884804958,0.1,128.89,128.88,17.30994492]
[1765884806559,0.1,128.89,128.88,8.80994492]
[1765884806560,0.82,128.89,128.88,8.80994492]
[1765884806738,3.6001733,128.89,128.88,8.80994492]
[1765884807251,0.82,128.89,128.88,8.80994492]
[1765884807757,0.1,128.89,128.88,8.80994492]
[1765884807958,0.1,128.89,128.88,16.56910072]
[1765884808441,0.1,128.89,128.88,28.52927402]
[1765884812060,0.1,128.89,128.88,31.30944732]
[1765884812453,0.1,128.89,128.88,28.52927402]
[1765884814165,0.1,128.89,128.88,25.74910072]
[1765884814479,0.1,128.89,128.88,28.52927402]
[1765884816046,0.1,128.89,128.88,25.06910072]
[1765884816254,0.1,128.89,128.88,17.30994492]
[1765884816569,0.82,128.89,128.88,8.80994492]
[1765884816779,0.82,128.89,128.88,7.7591558]
[1765884816951,0.82,128.89,128.88,16.56910072]
[1765884817774,0.1,128.89,128.88,16.56910072]
[1765884817973,0.1,128.89,128.88,20.04927402]
[1765884820746,0.1,128.89,128.88,81.94927402]
[1765884822073,0.1,128.89,128.88,79.16910072]
[1765884822366,0.1,128.89,128.88,81.94927402]
[1765884823269,0.1,128.89,128.88,81.24927402]
[1765884823464,0.82,128.89,128.88,70.70994492]
[1765884823662,0.82,128.89,128.88,8.80994492]
[1765884823870,0.1,128.89,128.88,9.50994492]
[1765884824048,0.1,128.89,128.88,90.44927402]
[1765884827855,0.1,128.89,128.88,93.22944732]
[1765884828466,0.72,128.95,128.88,93.22944732]
[1765884828671,0.72,128.96,128.93,11.59011822]
[1765884828871,0.72,128.96,128.95,8.80994492]
[1765884829376,0.72,128.98,128.95,8.80994492]
[1765884829578,0.72,128.97,128.95,8.80994492]
[1765884829776,0.72,128.96,128.95,8.80994492]
[1765884830072,0.72,128.95,128.93,8.80994492]
[1765884830963,0.72,128.95,128.92,8.80994492]
[1765884832384,0.72,128.95,128.93,2.7801733]
[1765884832571,0.72,128.95,128.94,8.80994492]
[1765884834091,0.72,128.95,128.93,11.59011822]
[1765884834285,0.72,128.95,128.93,19.34624198]
[1765884834486,0.72,128.95,128.93,8.80994492]
[1765884835358,0.72,128.94,128.93,8.80994492]
[1765884836066,2.7801733,128.94,128.91,7.16994492]
[1765884836281,2.7801733,128.94,128.82,8.85120363]
[1765884836282,13.0470912,128.9,128.83,0.7]
[1765884836604,15.8272645,128.85,128.8,11.2439814]
[1765884836752,2.7801733,128.83,128.8,8.4638081]
[1765884836953,2.7801733,128.83,128.8,0.7]
[1765884837402,13.0470912,128.85,128.78,0.7]
[1765884837403,4.34686552,128.82,128.78,0.7]
[1765884837694,4.34686552,128.82,128.73,39.04077139]
[1765884837695,17.39395672,128.79,128.73,0.2]
[1765884837881,4.34686552,128.78,128.73,13.01461413]
[1765884838392,4.34686552,128.78,128.73,0.9]
[1765884838600,4.34686552,128.75,128.73,0.2]
[1765884838758,4.34686552,128.74,128.73,0.2]
[1765884839356,12.11445911,128.74,128.73,0.2]
[1765884840409,13.0470912,128.75,128.73,0.2]
[1765884840563,25.16095252,128.75,128.73,0.2]
[1765884841585,13.0470912,128.74,128.73,0.2]
[1765884841762,25.17166453,128.74,128.73,0.2]
[1765884841965,13.0470912,128.74,128.73,0.2]
[1765884842369,25.17166453,128.74,128.73,0.2]
[1765884842759,20.62457333,128.74,128.73,0.2]
[1765884843185,13.0470912,128.71,128.68,0.2]
[1765884843389,7.77000777,128.7,128.68,0.2]
[1765884843571,0.99999999,128.75,128.68,0.2]
[1765884843572,13.0470912,128.75,128.68,13.04457333]
[1765884843894,25.17166453,128.71,128.68,0.2]
[1765884844393,12.12457333,128.69,128.68,0.2]
[1765884844791,8.5,128.7,128.68,0.2]
[1765884845171,8.5,128.7,128.68,9.00994492]
[1765884845871,8.5,128.7,128.68,0.2]
[1765884846066,28.39464166,128.7,128.68,0.2]
[1765884846271,12.12457333,128.69,128.68,0.2]
[1765884847667,19.89518487,128.69,128.68,0.2]
[1765884848285,13.0470912,128.66,128.62,0.2]
[1765884848603,25.17166453,128.63,128.62,0.2]
[1765884848898,33.69166453,128.63,128.62,0.2]
[1765884849903,41.46590071,128.63,128.62,0.2]
[1765884851332,60.90149116,128.63,128.56,9.00994492]
[1765884851626,12.12457333,128.59,128.56,9.00994492]
[1765884851834,48.77691783,128.63,128.56,9.72994492]
[1765884851835,20.64457333,128.6,128.56,9.72994492]
[1765884852036,20.64457333,128.6,128.56,21.85451825]
[1765884852214,12.12457333,128.59,128.56,9.00994492]
[1765884853035,33.69166453,128.6,128.56,29.63282028]
[1765884853204,33.69166453,128.6,128.56,9.72994492]
[1765884853205,41.46776329,128.6,128.56,9.72994492]
[1765884853726,33.69166453,128.6,128.57,0.72]
[1765884853919,13.0470912,128.58,128.57,0.72]
[1765884854106,13.0470912,128.58,128.56,29.63285024]
[1765884854306,13.0470912,128.58,128.56,21.85451825]
[1765884855004,13.0470912,128.58,128.56,9.00994492]
[1765884855617,13.0470912,128.58,128.56,9.72994492]
[1765884855922,13.0470912,128.58,128.56,29.63286417]
[1765884856232,13.0470912,128.58,128.56,28.91286417]
[1765884856433,13.0470912,128.59,128.58,9.52994492]
[1765884856814,13.0470912,128.59,128.58,8.80994492]
[1765884857709,13.0470912,128.59,128.56,0.2]
[1765884858036,13.0470912,128.59,128.56,0.92]
[1765884858333,13.0470912,128.59,128.56,8.69804851]
[1765884858516,13.0470912,128.59,128.58,9.52994492]
[1765884858935,7.77061154,128.69,128.6,0.72]
[1765884859136,7.77061154,128.69,128.59,8.80994492]
[1765884859137,8.52,128.68,128.59,8.80994492]
[1765884859322,12.14822503,128.62,128.58,20.95816995]
[1765884859637,13.0470912,128.61,128.6,21.67816995]
[1765884860137,7.77312462,128.65,128.61,9.52994492]
[1765884860314,7.77312462,128.65,128.61,21.67816995]
[1765884860514,20.66822503,128.66,128.63,8.80994492]
[1765884861032,13.0470912,128.64,128.63,8.80994492]
[1765884861239,13.0470912,128.63,128.59,9.52994492]
[1765884861409,25.19531623,128.63,128.59,21.67816995]
[1765884861816,20.82144362,128.63,128.59,21.67816995]